Cogmind - Beta 11.1 @@@ ROGUE MODE // 2022.05.20 @ 23:05:54 Player: Lyra Result: Destroyed by G-47 Trooper with Particle Gun Performance ------------- Evolutions (3) 1500 Regions Visited (10) 2000 Robots Destroyed (34) 170 Value Destroyed (882) 882 Prototype IDs (27) 540 Alien Tech Used (0) 0 Bonus (1058) 1058 TOTAL SCORE: 6150 Bonus ------- Follower Combat Kills 65 Entered Garrisons 200 Used RIF Installer 500 Aligned with FarCom 300 Friendly Fire -7 Cogmind --------- Core Integrity 0/700 Matter 245/300 Energy 290/290 System Corruption 3% Temperature Cool (27) Movement Rolling (115) Ox1 Location -7/Factory Parts ------- > --- POWER (1) -------- Improved Deuterium Engine > --- PROPULSION (5) --- Compact Wheel Armored Huge Wheel Armored Huge Wheel > --- UTILITY (5) ------ Improved Cooling System Medium Storage Unit Huge Storage Unit Improved Signal Interpreter Hacking Suite > --- WEAPON (2) ------- Assault Cannon Great Axe > --- INVENTORY (25) --- Backup Power I Light Nuclear Core Heavy Deuterium Engine Micro Nuclear Core Improved Carbon-fiber Leg Potential Leg Potential Leg Improved VTOL Module Faulty Improved VTOL Module Cooled VTOL Module Cooled VTOL Module Cryofiber Web Weight Redist. System Structural Scanner Advanced Targeting Computer Weapon Cycler Microactuators Hardened Medium Armor Plating Improved Shield Generator Gatling Laser Advanced Beam Cannon Plasma Cannon Remote Datajack Plasma Cutter Powered Hammer Peak State ------------ > --- POWER ------------ Improved Deuterium Engine > --- PROPULSION ------- Carbon-fiber Leg Armored Huge Wheel Armored Huge Wheel > --- UTILITY ---------- Improved Cooling System Huge Storage Unit Improved Signal Interpreter Hardened Medium Armor Plating Hacking Suite > --- WEAPON ----------- Plasma Cannon Plasma Cannon > --- INVENTORY -------- Backup Power I Light Nuclear Core Heavy Deuterium Engine Potential Leg Potential Leg Gravmag System Cryofiber Web Structural Scanner Advanced Targeting Computer Weapon Cycler Microactuators Improved Shield Generator Gatling Laser Advanced Beam Cannon Assault Cannon Remote Datajack Powered Hammer [Rating: 52] Favorites ----------- Power Improved Deuterium Engine Engine Improved Deuterium Engine Power Core Micro Nuclear Core Propulsion Improved Flight Unit Leg Aluminum Leg Wheel Armored Huge Wheel Hover Unit Backup Propulsion I Flight Unit Improved Flight Unit Utility Improved Signal Interpreter Device Improved Cooling System Storage Huge Storage Unit Processor Improved Signal Interpreter Hackware Hacking Suite Protection Hardened Medium Armor Plating Weapon Light Assault Rifle Energy Gun Backup Laser I Energy Cannon Plasma Cannon Ballistic Gun Light Assault Rifle Ballistic Cannon Assault Cannon Special Weapon Plasma Cutter Impact Weapon Powered Hammer Slashing Weapon Great Axe Build | -11 -10 -10 -9 -9 -9 -8 -8 -7 -7 -7 ------- Run | Scr Mat Min Mat Min Exi Min Mat Fac Gar Fac Slots Evolved 6 | . . . 2 . . . 2 2 . . Power . | . . . . . . . . . . . Propulsion 3 | . . . 2 . . . 1 . . . Utility 3 | . . . . . . . 1 2 . . Weapon . | . . . . . . . . . . . Parts Attached 80 | 5 11 1 11 . 1 . 2 6 4 39 Power 7 | 1 2 . . . 1 . . 2 . 1 Engine 6 | 1 2 . . . 1 . . 1 . 1 Core 1 | . . . . . . . . 1 . . Reactor . | . . . . . . . . . . . Propulsion 35 | 3 2 1 8 . . . 1 1 3 16 Treads . | . . . . . . . . . . . Leg 7 | 2 2 . . . . . . . . 3 Wheel 14 | 1 . . . . . . . . . 13 Hover . | . . . . . . . . . . . Flight 14 | . . 1 8 . . . 1 1 3 . Utility 21 | 1 2 . 3 . . . 1 3 1 10 Device 7 | . 1 . . . . . . . . 6 Storage 5 | 1 1 . 1 . . . . . . 2 Processor 1 | . . . . . . . . . 1 . Hackware 3 | . . . . . . . . 2 . 1 Protection 5 | . . . 2 . . . 1 1 . 1 Artifact . | . . . . . . . . . . . Weapon 17 | . 5 . . . . . . . . 12 Energy Gun 4 | . 2 . . . . . . . . 2 Energy Cannon 6 | . 1 . . . . . . . . 5 Ballistic Gun 2 | . 2 . . . . . . . . . Ballistic Cannon 2 | . . . . . . . . . . 2 Launcher . | . . . . . . . . . . . Special Weapon 1 | . . . . . . . . . . 1 Impact Weapon 1 | . . . . . . . . . . 1 Slashing Weapon 1 | . . . . . . . . . . 1 Piercing Weapon . | . . . . . . . . . . . Special Melee Weapon . | . . . . . . . . . . . Unidentified Prototypes 3 | . . . 1 . . . . 1 . 1 Parts Lost 22 | . 6 . 1 1 . . 4 . 8 2 Power 3 | . 1 . . 1 . . 1 . . . Propulsion 11 | . 2 . 1 . . . . . 6 2 Utility 4 | . 1 . . . . . 1 . 2 . Weapon 4 | . 2 . . . . . 2 . . . Highest Loss Streak 8 | . 4 . 1 1 . . 4 . 8 1 To Critical Strikes . | . . . . . . . . . . . Average Slot Usage (%) 82 | . 79 85 85 98 95 100 91 82 90 79 Engine 7 | . 10 14 11 9 6 11 7 3 . 6 Leg 9 | . 25 14 2 . . . . . . 3 Wheel 8 | . . . . . . . . . . 19 Flight 9 | . . 14 35 44 44 44 45 38 34 . Device 4 | . 3 . . . . . . . . 7 Storage 10 | . 14 14 11 11 11 11 9 7 6 8 Processor 3 | . . . . . . . . . . 7 Hackware 3 | . . . . . . . . 13 14 5 Protection 4 | . . . 2 11 11 11 13 14 12 4 Energy Gun 6 | . 10 . . . . . . 3 13 5 Energy Cannon 3 | . 4 . . . . . . . . 5 Ballistic Gun 6 | . 10 28 22 22 22 22 17 . . . Naked Turns . | . . . . . . . . . . . Heaviest Build 114 | 8 31 25 25 18 18 18 22 25 25 114 Greatest Support 80 | 20 20 10 20 20 20 20 24 25 25 80 Greatest Overweight (x) 29 | . 2 2 2 . . . . . . 29 Average Overweight (x) . | . 1 2 . . . . . . . 1 Largest Inventory Capacity 25 | 8 15 15 15 10 10 10 10 10 10 25 Average Capacity 17 | 6 14 15 11 10 10 10 10 10 9 23 Most Carried 25 | 1 12 11 12 10 10 10 10 10 10 25 Average Carried 10 | . 6 11 9 10 9 10 9 8 9 14 Final Capacity 25 | 8 15 15 10 10 10 10 10 10 5 25 Final Carried 25 | 1 12 11 10 10 10 10 10 10 5 25 Class Distribution -------------------- 78% | Mutant 10% | Sprinter 8% | Hacker-Sprinter Dominant Class ---------------- Mutant | -10/Materials Mutant | -10/Mines Scavenger-Sprinter | -9/Materials Sprinter | -9/Mines Sprinter | -9/Exiles Sprinter | -8/Mines Sprinter | -8/Materials Hacker-Sprinter | -7/Factory Hacker-Sprinter | -7/Garrison Mutant | -7/Factory Resources | -11 -10 -10 -9 -9 -9 -8 -8 -7 -7 -7 ----------- Run | Scr Mat Min Mat Min Exi Min Mat Fac Gar Fac Matter Collected 1049 | 95 271 . 134 14 . . 31 . . 504 Remotely . | . . . . . . . . . . . Salvage Created 1259 | . 592 . 95 . . . 27 . . 545 Parts 64 | . 33 . 8 . . . 2 . . 21 Haulers Intercepted 4 | . 2 . 1 . . . . . . 1 Recyclers Shooed 3 | . 2 . . . . . . . . 1 Parts Field Recycled . | . . . . . . . . . . . Retrieved Matter . | . . . . . . . . . . . Parts Self-Destructed . | . . . . . . . . . . . Prevented . | . . . . . . . . . . . Kills | -11 -10 -10 -9 -9 -9 -8 -8 -7 -7 -7 ------- Run | Scr Mat Min Mat Min Exi Min Mat Fac Gar Fac Combat Hostiles Destroyed 25 | . 13 . 1 . . . 2 . . 9 Melee 1 | . 1 . . . . . . . . . Guns 15 | . 8 . 1 . . . 2 . . 4 Cannons 8 | . 4 . . . . . . . . 4 Classes Destroyed 8 | . 5 . 1 . . . . . . 2 Hauler 4 | . 2 . 1 . . . . . . 1 Recycler 2 | . 1 . . . . . . . . 1 Operator 1 | . . . 1 . . . . . . . Watcher 2 | . 2 . . . . . . . . . Swarmer 9 | . 6 . 1 . . . 2 . . . Grunt 12 | . 7 . . . . . . . . 5 Hunter 3 | . . . . . . . . . . 3 Programmer 1 | . . . . . . . . . . 1 Best Kill Streak 4 | . 4 . 1 . . . 1 . . 3 Combat Bots Only 3 | . 3 . 1 . . . 1 . . 2 Max Kills in Single Turn 1 | . 1 . 1 . . . 1 . . 1 Gunslinging . | . . . . . . . . . . . Exploded . | . . . . . . . . . . . Melee 1 | . 1 . . . . . . . . . Uniques/NPCs Destroyed . | . . . . . . . . . . . Combat | -11 -10 -10 -9 -9 -9 -8 -8 -7 -7 -7 -------- Run | Scr Mat Min Mat Min Exi Min Mat Fac Gar Fac Damage Taken 3517 | . 790 . 134 293 . 13 212 65 971 1039 Core 932 | . 155 . 38 19 . . 18 17 505 180 Absorbed by Shields 201 | . . . . . . . . . 58 143 Core Remaining (%) 79 | 100 . 38 . . . 85 96 . . . Volleys Fired 138 | . 53 . 14 . . . 7 . 3 61 Largest 2 | . 2 . 2 . . . 2 . 2 2 Hottest 160 | . 110 . 40 . . . 40 . 60 160 Shots Fired 241 | . 106 . 28 . . . 14 . 6 87 Gun 173 | . 90 . 28 . . . 14 . 6 35 Cannon 64 | . 16 . . . . . . . . 48 Launcher . | . . . . . . . . . . . Special 4 | . . . . . . . . . . 4 Kinetic 90 | . 26 . 28 . . . 14 . . 22 Thermal 151 | . 80 . . . . . . . 6 65 Explosive . | . . . . . . . . . . . Electromagnetic . | . . . . . . . . . . . Robot Hit Streak 10 | . 9 . 5 . . . 4 . . 10 Robot Miss Streak 5 | . 3 . 5 . . . 3 . . 3 Penetration Max . | . . . . . . . . . . . Secondary Targets 3 | . 1 . 1 . . . 1 . . . Max Gunslinging Chain 1 | . 1 . 1 . . . 1 . . . Shots Hit Robots 133 | . 61 . 15 . . . 8 . . 49 Core Hits 68 | . 32 . 9 . . . 4 . . 23 Critical Kills . | . . . . . . . . . . . Critical Parts Destroyed . | . . . . . . . . . . . Critical Strikes 3 | . 3 . . . . . . . . . Burn 3 | . 3 . . . . . . . . . Melee Attacks 2 | . . . . . . . . . . 2 Impact 1 | . . . . . . . . . . 1 Slashing 1 | . . . . . . . . . . 1 Piercing . | . . . . . . . . . . . Sneak Attacks . | . . . . . . . . . . . Combat Hostiles . | . . . . . . . . . . . Follow-up Attacks . | . . . . . . . . . . . Damage Inflicted 1827 | . 797 . 129 . . . 63 . 11 827 Guns 1027 | . 588 . 129 . . . 63 . . 247 Cannons 715 | . 158 . . . . . . . . 557 Explosions . | . . . . . . . . . . . Melee . | . . . . . . . . . . . Ramming 62 | . 51 . . . . . . . 11 . Kinetic 548 | . 172 . 129 . . . 63 . . 184 Thermal 1217 | . 574 . . . . . . . . 643 Explosive . | . . . . . . . . . . . Electromagnetic . | . . . . . . . . . . . Impact . | . . . . . . . . . . . Slashing . | . . . . . . . . . . . Piercing . | . . . . . . . . . . . Highest Corruption 4 | . . . . . . . . . 4 4 Average Corruption 2 | . . . . . . . . . 3 2 Corruption Purged 5 | . . . . . . . . . . 5 Corruption Blocked . | . . . . . . . . . . . Effects 19 | . . . . . . . . . 2 17 Message Errors 9 | . . . . . . . . . 1 8 Matter Fused 2 | . . . . . . . . . 1 1 Heat Flow Errors 3 | . . . . . . . . . . 3 Energy Discharges 3 | . . . . . . . . . . 3 Data Loss (minor) 2 | . . . . . . . . . . 2 Overload Shots . | . . . . . . . . . . . Overflow Damage . | . . . . . . . . . . . Projectiles . | . . . . . . . . . . . Explosions . | . . . . . . . . . . . Melee . | . . . . . . . . . . . Knockbacks 4 | . 1 . . . . . . . . 3 Impact 1 | . 1 . . . . . . . . . Kinetic 3 | . . . . . . . . . . 3 Secondary . | . . . . . . . . . . . Self-Inflicted Damage 4 | . . . . . . . . . 4 . Shots . | . . . . . . . . . . . Rammed 3 | . . . . . . . . . 3 . Targets Rammed 26 | . 23 . . . . . . . 3 . Kicked 23 | . 23 . . . . . . . . . Crushed . | . . . . . . . . . . . Highest Temperature 372 | . 372 . 15 4 . 8 77 20 61 320 Average Temperature 93 | . 105 . 5 3 . 5 41 7 26 180 Received Heat Transfer 1119 | . 345 . 54 15 . 9 27 36 161 472 Effects 1 | . 1 . . . . . . . . . Interference 1 | . 1 . . . . . . . . . Siege Activations . | . . . . . . . . . . . Robots Corrupted . | . . . . . . . . . . . Combat Hostiles . | . . . . . . . . . . . Parts Fried . | . . . . . . . . . . . Impact Corruptions . | . . . . . . . . . . . Robots Melted 1 | . . . . . . . . . . 1 Combat Hostiles 1 | . . . . . . . . . . 1 Parts Melted 11 | . 8 . . . . . . . . 3 Heat Transferred 3513 | . 1776 . . . . . . . . 1737 Parts Sabotaged . | . . . . . . . . . . . Parts Stolen . | . . . . . . . . . . . Parts Stripped . | . . . . . . . . . . . Power Chain Reactions . | . . . . . . . . . . . Missiles Intercepted . | . . . . . . . . . . . Alert | -11 -10 -10 -9 -9 -9 -8 -8 -7 -7 -7 ------- Run | Scr Mat Min Mat Min Exi Min Mat Fac Gar Fac Peak Influence 233 | . 195 31 137 118 . . 116 112 233 150 Initial 90 | . . 31 11 53 . . . 52 78 90 Average 74 | . 77 31 61 74 . . 44 75 109 74 Maximum Alert Level 1 | . . . . . . . . . 1 . Low Security (%) 99 | 100 100 100 100 100 . 100 100 100 90 100 Level 1 . | . . . . . . . . . 10 . Level 2 . | . . . . . . . . . . . Level 3 . | . . . . . . . . . . . Level 4 . | . . . . . . . . . . . Level 5 . | . . . . . . . . . . . High Security . | . . . . . . . . . . . Max Security . | . . . . . . . . . . . Squads Dispatched 15 | . 3 . 1 . . . . 1 . 10 Investigation 7 | . 1 . . . . . . 1 . 5 Extermination 1 | . . . . . . . . . . 1 Reinforcement 4 | . 2 . 1 . . . . . . 1 Assault . | . . . . . . . . . . . Garrison 3 | . . . . . . . . . . 3 Intercept . | . . . . . . . . . . . Searches Triggered . | . . . . . . . . . . . Construction Impeded . | . . . . . . . . . . . Haulers Reinforced 1 | . . . . . . . . . . 1 Active Scanning Responses . | . . . . . . . . . . . Cargo Convoy Interrupts . | . . . . . . . . . . . Stealth | -11 -10 -10 -9 -9 -9 -8 -8 -7 -7 -7 --------- Run | Scr Mat Min Mat Min Exi Min Mat Fac Gar Fac Distress Signals 4 | . 1 . 2 . . . 1 . . . Communications Jammed . | . . . . . . . . . . . Distress Signals . | . . . . . . . . . . . Times Spotted 133 | . 21 . 16 30 . 3 17 8 24 14 Peak Tracking Total 22 | . 4 . 6 22 . 3 11 6 20 4 Tactical Retreats 7 | . . . . 2 . . 2 1 1 1 Traps | -11 -10 -10 -9 -9 -9 -8 -8 -7 -7 -7 ------- Run | Scr Mat Min Mat Min Exi Min Mat Fac Gar Fac Traps Triggered 8 | . 1 . . . . . . . 2 5 Indirectly . | . . . . . . . . . . . Trap Hack Attempts . | . . . . . . . . . . . Triggered . | . . . . . . . . . . . Disarmed . | . . . . . . . . . . . Reprogrammed . | . . . . . . . . . . . Reused . | . . . . . . . . . . . Traps Extracted . | . . . . . . . . . . . Installed . | . . . . . . . . . . . Triggered . | . . . . . . . . . . . Machines | -11 -10 -10 -9 -9 -9 -8 -8 -7 -7 -7 ---------- Run | Scr Mat Min Mat Min Exi Min Mat Fac Gar Fac Machines Disabled 1 | . . . . . . . . . . 1 Max in Single Turn 1 | . . . . . . . . . . 1 Machines Sabotaged . | . . . . . . . . . . . Garrisons Compromised . | . . . . . . . . . . . Overloaded Fab Kills . | . . . . . . . . . . . Hacking | -11 -10 -10 -9 -9 -9 -8 -8 -7 -7 -7 --------- Run | Scr Mat Min Mat Min Exi Min Mat Fac Gar Fac Machines Accessed 17 | . 3 . 2 . 2 . 1 4 . 5 Terminals 8 | . 2 . 2 . . . 1 1 . 2 Fabricators . | . . . . . . . . . . . Repair Stations 2 | . . . . . . . . 1 . 1 Recycling Units 1 | . 1 . . . . . . . . . Scanalyzers 2 | . . . . . . . . 1 . 1 Garrison Access 2 | . . . . . . . . 1 . 1 Total Hacks 38 | . 12 . 3 . 2 . 3 5 . 13 Successful 17 | . 3 . 1 . 2 . 2 3 . 6 Failed 21 | . 9 . 2 . . . 1 2 . 7 Catastrophic 5 | . 2 . 1 . . . . . . 2 Database Lockouts . | . . . . . . . . . . . Manual 22 | . 6 . 3 . 1 . 3 3 . 6 Terminals 23 | . 7 . 3 . . . 3 2 . 8 Fabricators . | . . . . . . . . . . . Repair Stations 3 | . . . . . . . . 1 . 2 Recycling Units 5 | . 5 . . . . . . . . . Scanalyzers 2 | . . . . . . . . 1 . 1 Garrison Access 3 | . . . . . . . . 1 . 2 Terminal Hacks 9 | . 1 . 1 . 2 . 2 . . 3 Record 1 | . . . . . 1 . . . . . Part Schematic 1 | . . . . . . . 1 . . . Level Access Points 1 | . 1 . . . . . . . . . Branch Access Points 3 | . . . 1 . . . 1 . . 1 Alert Level 1 | . . . . . . . . . . 1 Zone Layout 1 | . . . . . . . . . . 1 EX-Prototype ID Bank 1 | . . . . . 1 . . . . . Fabricator Hacks . | . . . . . . . . . . . Repair Station Hacks 2 | . . . . . . . . 1 . 1 Refit 2 | . . . . . . . . 1 . 1 Recycling Unit Hacks . | . . . . . . . . . . . Scanalyzer . | . . . . . . . . . . . Garrison Access Hacks 1 | . . . . . . . . 1 . . Unlock Access 1 | . . . . . . . . 1 . . Unauthorized Hacks 5 | . 2 . . . . . . 1 . 2 Terminals . | . . . . . . . . . . . Fabricators . | . . . . . . . . . . . Repair Stations . | . . . . . . . . . . . Recycling Units 2 | . 2 . . . . . . . . . Reject 1 | . 1 . . . . . . . . . Tunnel 1 | . 1 . . . . . . . . . Scanalyzers 2 | . . . . . . . . 1 . 1 Extract 2 | . . . . . . . . 1 . 1 Garrison Access 1 | . . . . . . . . . . 1 Reprogram 1 | . . . . . . . . . . 1 Data Cores Recovered . | . . . . . . . . . . . Used . | . . . . . . . . . . . Hacking Detections 10 | . 3 . 2 . . . 1 1 . 3 Full Trace Events 4 | . 1 . . . . . 1 . . 2 Feedback Events 1 | . . . . . . . . . . 1 Corruption 1 | . . . . . . . . . . 1 Feedback Blocked . | . . . . . . . . . . . Robot Schematics Acquired . | . . . . . . . . . . . Robots Built . | . . . . . . . . . . . Authchips . | . . . . . . . . . . . Time . | . . . . . . . . . . . Total Robot Build Rating . | . . . . . . . . . . . Part Schematics Acquired 6 | . . . . . . . 1 4 . 1 Parts Built . | . . . . . . . . . . . Authchips . | . . . . . . . . . . . Time . | . . . . . . . . . . . Total Part Build Rating . | . . . . . . . . . . . Parts Repaired . | . . . . . . . . . . . Time . | . . . . . . . . . . . Parts Recycled . | . . . . . . . . . . . Recycled Matter . | . . . . . . . . . . . Retrieved Matter . | . . . . . . . . . . . Retrieved Components . | . . . . . . . . . . . Parts Scanalyzed . | . . . . . . . . . . . Part Schematics Acquired . | . . . . . . . . . . . Parts Damaged . | . . . . . . . . . . . Bothacking | -11 -10 -10 -9 -9 -9 -8 -8 -7 -7 -7 ------------ Run | Scr Mat Min Mat Min Exi Min Mat Fac Gar Fac Used RIF Installer 1 | . . . . . . . . . 1 . Robots Hacked . | . . . . . . . . . . . Non-combat . | . . . . . . . . . . . Combat . | . . . . . . . . . . . Robot Hacks Applied . | . . . . . . . . . . . Relay Couplers Released . | . . . . . . . . . . . Fabnet Peak Effective % . | . . . . . . . . . . . Robots Rewired . | . . . . . . . . . . . Allies Hacked . | . . . . . . . . . . . Hacks Repelled . | . . . . . . . . . . . Allies | -11 -10 -10 -9 -9 -9 -8 -8 -7 -7 -7 -------- Run | Scr Mat Min Mat Min Exi Min Mat Fac Gar Fac Total Allies 4 | . . 1 . . . . . . . 3 Largest Group 2 | . . 1 1 . . . . . . 2 Highest-Rated Group 32 | . . 31 31 . . . . . . 32 Highest-Rated Ally 31 | . . 31 31 . . . . . . 16 Total Orders . | . . . . . . . . . . . Ally Attacks 27 | . . . 14 . . . . . . 13 Total Damage 229 | . . . 84 . . . . . . 145 Kills 3 | . . . 3 . . . . . . . Allies Corrupted . | . . . . . . . . . . . Allies Melted . | . . . . . . . . . . . Intel | -11 -10 -10 -9 -9 -9 -8 -8 -7 -7 -7 ------- Run | Scr Mat Min Mat Min Exi Min Mat Fac Gar Fac Robot Analysis Total . | . . . . . . . . . . . Derelict Logs Recovered 2 | . . . . 2 . . . . . . Drone Launches . | . . . . . . . . . . . Drone Recoveries . | . . . . . . . . . . . Exploration | -11 -10 -10 -9 -9 -9 -8 -8 -7 -7 -7 ------------- Run | Scr Mat Min Mat Min Exi Min Mat Fac Gar Fac Turns Passed 3581 | 43 1068 72 162 59 168 15 88 133 260 1513 Spaces Moved 2912 | 35 435 28 193 191 420 40 227 294 295 754 Core 35 | 8 . . . . . . . . 26 1 Treads . | . . . . . . . . . . . Legs 524 | 24 435 28 14 . . . . . . 23 Wheels 733 | 3 . . . . . . . . . 730 Hover . | . . . . . . . . . . . Flight 1620 | . . . 179 191 420 40 227 294 269 . Fastest Speed 27 | 50 120 260 31 31 31 31 28 27 27 90 Average Speed 80 | 100 191 260 48 31 31 31 28 27 29 117 Slowest Speed 1500 | 120 260 260 260 31 34 31 28 28 50 1500 Overloaded Moves . | . . . . . . . . . . . Propulsion Burnouts . | . . . . . . . . . . . Robots Hopped 32 | . . . . 6 . 1 13 4 8 . Cave-ins Triggered . | . . . . . . . . . . . Exploration Rate (%) 32 | 3 51 9 21 48 88 17 32 15 56 15 Regions Visited 10 Branch Regions 4 Pre-discovered Areas 2 | . 1 . . . 1 . . . . . Known Exits Taken 4 | . . 1 1 . . . 1 1 . . Unknown Exits Taken 5 | 1 1 . . 1 1 1 . . . . Scrap Searched 3 | . . . . 3 . . . . . . Spaces Dug 2 | . . . . . . . . . . 2 Terrain Destroyed 2 | . . . . . . . . . . 2 Melee 2 | . . . . . . . . . . 2 Projectile . | . . . . . . . . . . . AOE . | . . . . . . . . . . . Terrain Rammed . | . . . . . . . . . . . Walls Destroyed . | . . . . . . . . . . . Machines Disabled . | . . . . . . . . . . . Actions | -11 -10 -10 -9 -9 -9 -8 -8 -7 -7 -7 --------- Run | Scr Mat Min Mat Min Exi Min Mat Fac Gar Fac Total 3847 | 41 552 28 243 184 457 40 226 344 451 1281 Wait 599 | . 16 . 6 . 34 2 1 40 128 372 Move 2844 | 34 434 27 192 179 419 37 204 285 279 754 Hop 23 | . . . . 5 . 1 9 4 4 . Pick Up 57 | 1 13 . 9 . 2 . 2 4 1 25 Fast Attach 29 | 5 7 . 1 . . . 1 2 1 12 Attach 31 | . 3 1 6 . 1 . 1 3 3 13 Detach 12 | . . . . . . . . 1 1 10 Swap 20 | . 1 . 4 . . . . 1 . 14 Drop 33 | 1 2 . 11 . 1 . 1 4 3 10 Fire 138 | . 53 . 14 . . . 7 . 3 61 Melee 2 | . . . . . . . . . . 2 Ram 3 | . . . . . . . . . 3 . Kick 23 | . 23 . . . . . . . . . Crush . | . . . . . . . . . . . Escape Stasis 33 | . . . . . . . . . 25 8 Rewire . | . . . . . . . . . . . Trap . | . . . . . . . . . . . Miscellaneous . | . . . . . . . . . . . Route ------- -11/Scrapyard -10/Materials (discovered 4 exits: *Mat x3 / [*Min]) -10/Mines -9/Materials (discovered 3 exits: *Min / Sto x2) -9/Mines (discovered 2 exits: *Mat / *Exi) -9/Exiles -8/Mines -8/Materials (discovered 2 exits: *Fac x2) -7/Factory -7/Garrison (discovered 3 exits: *Fac x3) -7/Factory (discovered 3 exits: [*Fac] / Low x2) History --------- Turn | Location | Event 5 | -11/Scrapyard | Discovered new exit (range 16) 44 | -11/Scrapyard | Entered Materials 109 | -10/Materials | Identified exit to Materials 126 | -10/Materials | Discovered new exit (range 15) 333 | -10/Materials | Build established: Mutant 688 | -10/Materials | Lost 4 parts (1p1n2w) 918 | -10/Materials | Core integrity fell below 50% 1112 | -10/Materials | Entered Mines 1115 | -10/Mines | Received a Mining Laser from a helpful Derelict 1176 | -10/Mines | Discovered exit to Materials (range 3) 1184 | -10/Mines | Entered Materials 1184 | -9/Materials | Accompanied by 1 ally 1184 | -9/Materials | Evolved 2 slots: Propulsion x2 1314 | -9/Materials | Identified exit to Mines 1314 | -9/Materials | Identified exit to Storage 1346 | -9/Materials | Entered Mines 1347 | -9/Mines | Assembled infested the area 1348 | -9/Mines | Learned location of 1 exit from Lower Caves 1348 | -9/Mines | Discovered new exit (range 7) 1399 | -9/Mines | Discovered new exit (range 13) 1400 | -9/Mines | Learned 2 Materials zone layouts 1405 | -9/Mines | Entered Exiles 1413 | -9/Exiles | Met 8R-AWN 1419 | -9/Exiles | Met EX-HEX 1428 | -9/Exiles | Met EX-BIN 1431 | -9/Exiles | Aligned with FarCom system 1432 | -9/Exiles | Given EX-Vault access code 1473 | -9/Exiles | Opened EX-Vault 1477 | -9/Exiles | Found Potential Leg 1479 | -9/Exiles | Found Potential Leg 1486 | -9/Exiles | Warned to stay clear of 0b10 Research branches 1521 | -9/Exiles | Met EX-DEC 1527 | -9/Exiles | Visited The Gauntlet 1560 | -9/Exiles | Learned location of Zion (-6) 1569 | -9/Exiles | Discovered new exit (range 14) 1573 | -9/Exiles | Left Exiles lab with Potential Leg 1573 | -9/Exiles | Entered Mines 1583 | -8/Mines | Discovered new exit (range 8) 1588 | -8/Mines | Entered Materials 1588 | -8/Materials | Evolved 2 slots: Propulsion x1, Utility x1 1589 | -8/Materials | Identified exit to Factory 1673 | -8/Materials | Discovered exit to Factory (range 11) 1676 | -8/Materials | Entered Factory 1676 | -7/Factory | Evolved 2 slots: Utility x2 1701 | -7/Factory | Lost 4 parts (1p1u2w) 1808 | -7/Factory | Identified exit to Garrison 1809 | -7/Factory | Entered Garrison 1970 | -7/Garrison | Build established: Hacker-Sprinter 1995 | -7/Garrison | Discovered new exit (range 10) 1997 | -7/Garrison | Attempted to access garrison exit controls, blocked by remote lockdown 2010 | -7/Garrison | Triggered checkpoint 2017 | -7/Garrison | Discovered new exit (range 12) 2032 | -7/Garrison | Triggered checkpoint 2048 | -7/Garrison | Triggered checkpoint 2055 | -7/Garrison | Core integrity fell below 50% 2055 | -7/Garrison | Discovered new exit (range 15) 2062 | -7/Garrison | Identified exit to Factory 2065 | -7/Garrison | Installed Relay Interface Framework 2069 | -7/Garrison | Entered Factory 2083 | -7/Factory | Lost 8 parts (6n2u) 2305 | -7/Factory | Build established: Mutant 2432 | -7/Factory | Garrison activated, responded to threat 2454 | -7/Factory | Core integrity fell below 20% 2827 | -7/Factory | Identified exit to Lower Caves 3265 | -7/Factory | Discovered new exit (range 11) 3582 | -7/Factory | Destroyed by G-47 Trooper with Particle Gun Last Messages --------------- 03438_ System corrupted (+1). 03479_ Acquired 43 matter. 03480_ Acquired 15 matter. 03484_ Garrison Access under remote control. 03545_ SHGNH1& VXWAUM>1QZL=DPJR3:6BV8LI>N 03558_ Dropped Plasma Cannon. 03559_ Acquired Great Axe. 03571_ Triggered Stasis Trap. 03571_ A bubble of rippling energy engulfs the area. 03571_ Field strength at 90. 03572_ Field strength at 80. 03573_ Field strength at 70. 03574_ Field strength at 60. 03575_ Field strength at 50. 03576_ Field strength at 40. 03577_ Field strength at 30. 03578_ Field strength at 20. 03579_ Field strength at 5. 03580_ Stasis field depleted. 03582_ Critical hit (Burn: +37). Map ----- +----------------------------------------------------+ | ??## ?? # # # #########? | | ??## ########+#######+### ^ #########? | | ?? ##? | | ?? ### | | ?? ! ### | | ??? """" # | | ??? """ # | | ???##############+### ! "" " # | | ??? # # ! " "" %""" # | | ??????????????????? # "" !! % G # | | ??????????????????? # """" !! % """ %# | | ??????????????????? # """" ! " +% | | ??????????????????? # # | | ??????????########### % # | | ??????????# =# ####/########### # | | ??????????# # # ] ###### # | | ??????????# # #! #???## # | | ??????????# # # ] = #???## ### | | ??????????# # u# = #???## ### | | ??????????# # u###########???## ### | | ??????????# ! # # "" #???## # | | ??????????# ! # u#g""" ""S #???## # | | ??????????#######+### g# """ "" #???## # | | ????????????## g# """ #???## # | | ????????????## + #???## + | | ????????????## u @# [ #???## # | | ???########### # #???## # | | ???########### # ] #???## # | | ???## # ##################????# ### | | ???## #% # #?????????# #?? | | ???## #% # """ """ #?????????# #?? | | ##### + # """ """ #?????????# #?? | | / # # """ """ #?????????# #?? | | ##### # # "" "" #?????????# #?? | | ##### # # "" "" #?????????# #?? | | #?## # # ###???????# ^ #?" | | #?## [ #! ###+#######+########### ^#?" | | #?###########[ # " | | #?# [[ !+% # " | | #?# # + | | #?# """ # # " | | ##?#^ """ # # " | | ???# " """ # ####+#####+#############+##+#?" | | ???# T # # # ## #?" | | ???# " # # """" # ## #?? | | ???# # + """" # ## #?? | | #######+###### # """" # ## #?? | | # # """" # ## #?? | | # #####+###### # """" # ## #?? | | # #??# ## # """" # ## #?? | +----------------------------------------------------+ Best States ------------- Heat Dissipation 61 Energy Generation 16 Energy Capacity 290 Matter Stores 300 Matter Capacity 300 Sight Range 16 Terrain Scan Density 10 Armor Coverage 300 Resistance: TH 10 Evasion (%) 64 Offensive Hacking 10 Defensive Hacking 10 Item Schematics ----------------- VSS Leg | -8/Materials | Hacked Gauss Cannon | -7/Factory | Extracted Powered Hammer | -7/Factory | Extracted Shock Bomb Launcher | -7/Factory | Extracted Imp. Cesium-ion Thruster | -7/Factory | Extracted Adv. Visual Processing Unit | -7/Factory | Extracted Robot Schematics ------------------ None Fabricated ------------ Nothing Alien Tech Used ----------------- None Achievements -------------- None Challenges ------------ None Game ------ Seed ThiefArmorAutogun Manual? 0 Play Time 00:57:19 Cumulative 97.1 hours Start 2022.05.20 @ 20:24:15 End 2022.05.20 @ 23:05:54 Sessions 1 Manual Loads 0 Difficulty Rogue Special Mode None Game No. 42 Rogue 42 Adventurer 0 Explorer 0 Win Type - Total 2 Types 1/0/1/0/0/0/0/0/0 Lore% 35 Gallery% 61 Achievement% 70 Wizard Run 0 Options --------- ASCII 0 Keyboard 0 Movement Numpad Keybinds 0 Fullscreen 1 Font 24/Smallcaps Map View 76x50 Tactical HUD 1 Map Filters NONE Filters LOW_CONTRAST(13,24,33) Steam 1 RUN: 488c0e92-e931-4004-af30-a3013724bc49